bitfinex/quotes_BTCUSD_20250620
["timestamp","ask_amount","ask_price","bid_price","bid_amount"]
[1750436003521,1.01972411,104210.0,104200.0,0.2860404]
[1750436004052,1.01972411,104210.0,104200.0,0.28604031]
[1750436004311,1.01972411,104210.0,104200.0,0.26684701]
[1750436004526,0.81820795,104210.0,104200.0,0.27644366]
[1750436004746,0.81820795,104210.0,104200.0,0.28604003]
[1750436004964,0.82780313,104210.0,104200.0,0.29563631]
[1750436005182,0.8182074,104210.0,104200.0,0.29563631]
[1750436005633,0.81820731,104210.0,104200.0,0.29563631]
[1750436005845,0.82780294,104210.0,104200.0,0.29563631]
[1750436006055,0.81820731,104210.0,104200.0,0.29563631]
[1750436006274,0.82780294,104210.0,104200.0,0.29563631]
[1750436006491,0.81820731,104210.0,104200.0,0.29563631]
[1750436006941,0.82780304,104210.0,104200.0,0.29563631]
[1750436007162,0.81820731,104210.0,104200.0,0.29563631]
[1750436007382,0.82780294,104210.0,104200.0,0.29563631]
[1750436007614,0.81820731,104210.0,104200.0,0.29563631]
[1750436008252,0.82780294,104210.0,104200.0,0.29563631]
[1750436008595,0.85311683,104210.0,104200.0,0.29563631]
[1750436009013,1.0546329,104210.0,104200.0,0.28604003]
[1750436009219,0.85311683,104210.0,104200.0,0.29563631]
[1750436009427,1.04503699,104210.0,104200.0,0.27644357]
[1750436009643,1.04503763,104210.0,104200.0,0.27644357]
[1750436009856,1.04503763,104210.0,104200.0,0.2956364]
[1750436010265,0.85311747,104210.0,104200.0,0.30523268]
[1750436010691,1.04503818,104210.0,104200.0,0.06417161]
[1750436010895,1.52598332,104210.0,104200.0,0.06417161]
[1750436011122,6.10215932,104210.0,104200.0,0.00057161]
[1750436012593,6.35877825,104210.0,104200.0,0.00057161]
[1750436012799,6.39239825,104210.0,104200.0,0.00057161]
[1750436013030,6.35999825,104210.0,104200.0,0.00057161]
[1750436013233,6.35999825,104210.0,104200.0,0.19251018]
[1750436013438,5.52296743,104210.0,104200.0,0.27420357]
[1750436013648,4.97167136,104210.0,104200.0,0.29453631]
[1750436013850,5.44687931,104210.0,104200.0,0.29453631]
[1750436014284,5.65799138,104210.0,104200.0,0.29453631]
[1750436014895,5.45647522,104210.0,104200.0,0.29453631]
[1750436015091,0.87192331,104210.0,104200.0,0.29453631]
[1750436015304,0.86232749,104210.0,104200.0,0.29453631]
[1750436015565,0.83739894,104210.0,104200.0,0.29453631]
[1750436016075,0.84699485,104210.0,104200.0,0.29453631]
[1750436016281,1.03891501,104210.0,104200.0,0.29453631]
[1750436016501,1.03891565,104210.0,104200.0,0.28494003]
[1750436016702,1.03891565,104210.0,104200.0,0.2945364]
[1750436016911,1.03891565,104210.0,104200.0,0.30413268]
[1750436017119,0.82780358,104210.0,104200.0,0.30413268]
[1750436017331,1.01972374,104210.0,104200.0,0.2945364]
[1750436018156,1.01972374,104210.0,104200.0,0.2945764]
[1750436018692,1.10972607,104210.0,104200.0,0.28498003]
[1750436020317,1.10972607,104210.0,104200.0,0.2945764]
[1750436020528,1.11932198,104210.0,104200.0,0.2945764]
[1750436020750,1.12891798,104210.0,104200.0,0.2945764]
[1750436021189,1.10972681,104210.0,104200.0,0.28498003]
[1750436021402,1.10972681,104210.0,104200.0,0.27538357]
[1750436021616,1.10013099,104210.0,104200.0,0.27538357]
[1750436022233,1.10013099,104210.0,104200.0,0.28498003]
[1750436022468,1.10013099,104210.0,104200.0,0.27538357]
[1750436023482,1.09053508,104210.0,104200.0,0.25619018]
[1750436023707,1.09053508,104210.0,104200.0,0.27538393]
[1750436024648,1.08093908,104210.0,104200.0,0.2657871]
[1750436024865,1.08093908,104210.0,104200.0,0.2646471]
[1750436025095,0.99093675,104210.0,104200.0,0.2646471]
[1750436025355,0.99093675,104210.0,104200.0,0.2658271]
[1750436026206,0.99093675,104210.0,104200.0,0.28502049]
[1750436026633,1.06053266,104210.0,104200.0,0.29461695]
[1750436026834,1.07972429,104210.0,104200.0,0.29461695]
[1750436027072,0.51901659,104210.0,104200.0,0.29461695]
[1750436027290,0.51901659,104210.0,104200.0,0.44538555]
[1750436027505,0.85901659,104210.0,104200.0,0.36914061]
[1750436027756,0.85901659,104210.0,104200.0,0.30421323]
[1750436028197,0.87820721,104210.0,104200.0,0.30421323]
[1750436028413,0.86861176,104210.0,104200.0,0.30421323]
[1750436028621,0.81820712,104210.0,104200.0,0.46665323]
[1750436028833,0.82780266,104210.0,104200.0,0.30421323]
[1750436029056,0.81820712,104210.0,104200.0,0.46665323]
[1750436029267,0.79901659,104210.0,104200.0,0.46665323]
[1750436030707,0.343,104210.0,104200.0,0.46665323]
[1750436030947,0.79901659,104210.0,104200.0,0.54015273]
[1750436031362,0.79901659,104210.0,104200.0,0.46665323]
[1750436035318,0.79901659,104210.0,104200.0,0.46661323]
[1750436036869,0.003,104210.0,104200.0,0.56189216]
[1750436037268,0.45901659,104210.0,104200.0,0.56189216]
[1750436038761,0.003,104210.0,104200.0,0.56189216]
[1750436038963,0.45901659,104210.0,104200.0,0.64491556]
[1750436039878,0.45901659,104210.0,104200.0,0.48251556]
[1750436039879,0.003,104210.0,104200.0,0.48251556]
[1750436040101,0.45901659,104210.0,104200.0,0.64487556]
[1750436040320,0.45901659,104210.0,104200.0,0.56185216]
[1750436042725,0.003,104210.0,104200.0,0.56185216]
[1750436042947,0.45901659,104210.0,104200.0,0.56185216]
[1750436044950,1.01012811,104210.0,104200.0,0.06311161]
[1750436045176,1.01126811,104210.0,104200.0,0.3644271]
[1750436045395,1.12954242,104210.0,104200.0,0.00061161]
[1750436045867,6.19131501,104210.0,104200.0,0.00061161]
[1750436046456,6.31542594,104210.0,104200.0,0.00061161]
[1750436046695,0.20155466,104190.0,104180.0,0.00014]
[1750436046961,5.82891369,104190.0,104180.0,0.00014]
[1750436047607,5.82891369,104190.0,104180.0,0.19211542]
[1750436047834,4.62851329,104190.0,104180.0,0.22091061]
[1750436048028,0.46561416,104190.0,104180.0,0.28699061]
[1750436048286,0.46561361,104190.0,104180.0,0.28699061]
[1750436048505,0.49440567,104190.0,104180.0,0.28699061]
[1750436048744,0.94082469,104190.0,104180.0,0.28581061]
[1750436048955,0.9600201,104190.0,104180.0,0.2858107]
[1750436049380,1.15614085,104190.0,104180.0,0.06504]
[1750436049594,5.72270919,104190.0,104180.0,0.00014]
[1750436050210,5.72370919,104190.0,104180.0,0.00014]
[1750436050422,5.75281052,104190.0,104180.0,0.00014]
[1750436051421,5.75281052,104190.0,104180.0,0.20171409]
[1750436052166,5.74321277,104190.0,104180.0,0.19211542]
[1750436052394,5.82888477,104190.0,104180.0,0.00014]
[1750436055959,5.82888477,104190.0,104180.0,0.19211542]
[1750436056154,5.82888477,104190.0,104180.0,0.00014]
[1750436056413,7.00315799,104190.0,104180.0,0.00014]
[1750436056734,7.03199799,104190.0,104180.0,0.00014]
[1750436056930,6.5759814,104190.0,104180.0,0.00014]
[1750436057194,7.03199799,104190.0,104180.0,0.00014]
[1750436057455,6.5759814,104190.0,104180.0,0.00014]
[1750436057658,6.5189437,104190.0,104180.0,0.00014]
[1750436058214,6.29656189,104190.0,104180.0,0.00014]
[1750436058458,6.48851889,104190.0,104180.0,0.00014]
[1750436059256,6.56865758,104190.0,104180.0,0.00014]
[1750436059423,0.01919891,104170.0,104160.0,0.00014]
[1750436059767,5.69232494,104170.0,104160.0,0.00014]
[1750436059975,5.69232494,104170.0,104160.0,0.19215228]
[1750436060181,5.69232494,104170.0,104160.0,0.20175289]
[1750436060613,5.69232494,104170.0,104160.0,0.20575289]
[1750436060825,5.69232494,104170.0,104160.0,0.21288862]
[1750436061047,5.45409184,104170.0,104160.0,0.21848914]
[1750436061249,5.23630835,104170.0,104160.0,0.23768953]
[1750436061512,5.23509835,104170.0,104160.0,0.30048971]
[1750436061758,0.00959886,104170.0,104160.0,0.31124912]
[1750436061976,0.49441313,104170.0,104160.0,0.31124912]
[1750436062186,0.49441313,104170.0,104160.0,0.30424912]
[1750436062187,0.48481363,104170.0,104160.0,0.30424912]
[1750436062404,0.48481363,104170.0,104160.0,0.30524912]
[1750436062838,0.4752144,104170.0,104160.0,0.30524912]
[1750436063264,0.48481353,104170.0,104160.0,0.30524912]
[1750436063480,0.4752144,104170.0,104160.0,0.30524912]
[1750436063911,0.45601659,104170.0,104160.0,0.30524912]
[1750436064521,0.45601659,104170.0,104160.0,0.46744912]
[1750436064743,0.79601659,104170.0,104160.0,0.52480492]
[1750436065383,0.79601659,104170.0,104160.0,0.46744912]
[1750436074079,0.34,104170.0,104160.0,0.46744912]
[1750436074330,0.79601659,104170.0,104160.0,0.46744912]
[1750436075373,0.45601659,104170.0,104160.0,0.46744912]
[1750436075764,5.02390559,104180.0,104170.0,0.21117524]
[1750436075967,0.45601659,104180.0,104170.0,0.34042946]
[1750436076817,0.45601659,104180.0,104170.0,0.27423524]
[1750436077501,0.47911758,104190.0,104180.0,0.28703061]
[1750436078559,0.53911758,104190.0,104180.0,0.28703061]
[1750436079232,0.53911758,104190.0,104180.0,0.28803061]
[1750436079751,0.99513417,104190.0,104180.0,0.28803061]
[1750436080016,0.0926981,104190.0,104180.0,0.44903061]
[1750436080325,1.01432857,104190.0,104180.0,0.44903061]
[1750436080513,1.00473128,104190.0,104180.0,0.44903061]
[1750436080958,1.00473128,104190.0,104180.0,0.44907061]
[1750436081197,1.00473119,104190.0,104180.0,0.44907061]
[1750436081705,1.02385199,104190.0,104180.0,0.45031061]
[1750436082402,1.03344901,104190.0,104180.0,0.45031061]
[1750436082611,1.02385199,104190.0,104180.0,0.45031061]
[1750436083536,1.36385199,104190.0,104180.0,0.45031061]
[1750436084006,1.36385199,104190.0,104180.0,0.52599109]
[1750436084007,0.9078354,104190.0,104180.0,0.52599109]
[1750436085146,0.91743251,104190.0,104180.0,0.52599109]
[1750436085379,1.3734491,104190.0,104180.0,0.52599109]
[1750436086521,1.3830463,104190.0,104180.0,0.52599109]
[1750436087674,1.41183909,104190.0,104180.0,0.52471109]
[1750436087893,1.40224134,104190.0,104180.0,0.52471109]
[1750436088135,1.40345134,104190.0,104180.0,0.44903061]
[1750436089460,1.40224125,104190.0,104180.0,0.44903061]
[1750436089681,1.40345125,104190.0,104180.0,0.44903061]
[1750436089900,1.41304891,104190.0,104180.0,0.44903061]
[1750436090546,1.41183891,104190.0,104180.0,0.44903061]
[1750436091142,1.60379655,104190.0,104180.0,0.44903061]
[1750436091354,1.59419935,104190.0,104180.0,0.37433249]
[1750436091492,1.40345235,104190.0,104180.0,0.3839308]
[1750436091930,1.40345235,104190.0,104180.0,0.42442892]
[1750436092141,1.16358626,104190.0,104180.0,0.42442892]
[1750436092355,1.14439085,104190.0,104180.0,0.42442892]
[1750436092572,1.14318085,104190.0,104180.0,0.45702892]
[1750436092813,1.15277851,104190.0,104180.0,0.45702892]
[1750436093041,1.38388955,104190.0,104180.0,0.2853108]
[1750436093293,1.19314255,104190.0,104180.0,0.39352892]
[1750436093526,1.3946974,104190.0,104180.0,0.39352901]
[1750436093753,1.19314255,104190.0,104180.0,0.40312713]
[1750436093977,1.17273705,104190.0,104180.0,0.46542713]
[1750436094197,1.19193173,104190.0,104180.0,0.46542713]
[1750436094425,1.18233425,104190.0,104180.0,0.46542713]
[1750436094669,1.19193163,104190.0,104180.0,0.46542713]
[1750436095132,1.16313994,104190.0,104180.0,0.46542713]
[1750436095355,1.17273714,104190.0,104180.0,0.46666713]
[1750436096202,1.2109696,104190.0,104180.0,0.46666713]
[1750436096433,1.20137222,104190.0,104180.0,0.46666713]
[1750436096641,0.28933895,104190.0,104180.0,0.46666713]
[1750436096854,1.21096942,104190.0,104180.0,0.46666713]
[1750436097060,1.19177502,104190.0,104180.0,0.46666713]
[1750436097468,1.20137213,104190.0,104180.0,0.46666713]
[1750436097680,0.71672037,104190.0,104180.0,0.53253555]
[1750436097884,0.70712335,104190.0,104180.0,0.53253555]
[1750436098085,0.71672037,104190.0,104180.0,0.53253555]
[1750436098289,0.71672037,104190.0,104180.0,0.46666713]
[1750436098504,0.50476765,104190.0,104180.0,0.46666713]
[1750436098704,0.49517063,104190.0,104180.0,0.46666713]
[1750436099118,0.50476765,104190.0,104180.0,0.46666713]
[1750436099320,0.95118722,104190.0,104180.0,0.53253555]
[1750436099584,0.96078424,104190.0,104180.0,0.53253555]
[1750436099999,0.95118722,104190.0,104180.0,0.53253555]
[1750436100214,0.03915404,104190.0,104180.0,0.53253555]
[1750436100425,0.83517063,104190.0,104180.0,0.53253555]
[1750436100640,1.25203318,104190.0,104180.0,0.53253555]
[1750436100851,1.25203318,104190.0,104180.0,0.53129555]
[1750436100852,1.28082542,104190.0,104180.0,0.53129555]
[1750436101064,1.28082533,104190.0,104180.0,0.53129555]
[1750436101279,1.49197793,104190.0,104180.0,0.28411089]
[1750436101483,1.29163308,104190.0,104180.0,0.3934891]
[1750436101691,1.27243776,104190.0,104180.0,0.40308722]
[1750436101899,1.27243776,104190.0,104180.0,0.46908722]
[1750436102519,1.32196922,104190.0,104180.0,0.46908722]
[1750436102928,1.32196913,104190.0,104180.0,0.46908722]
[1750436103130,1.31116156,104190.0,104180.0,0.46908722]
[1750436103340,1.32075913,104190.0,104180.0,0.46908722]
[1750436103548,1.33035679,104190.0,104180.0,0.46908722]
[1750436103780,1.53191164,104190.0,104180.0,0.46908722]
[1750436103985,1.33035679,104190.0,104180.0,0.30700722]
[1750436104213,1.33035679,104190.0,104180.0,0.46904722]
[1750436105471,1.12551087,104190.0,104180.0,0.46904722]
[1750436105688,5.89495472,104190.0,104180.0,0.16308]
[1750436105903,5.90787014,104190.0,104180.0,0.21221286]
[1750436106118,6.02941257,104190.0,104180.0,0.00104]
[1750436106333,6.05239618,104190.0,104180.0,0.00104]
[1750436106747,6.05238704,104190.0,104180.0,0.19301542]
[1750436106961,6.02941257,104190.0,104180.0,0.20261409]
[1750436107235,5.84705285,104190.0,104180.0,0.23140937]
[1750436107443,5.92911696,104190.0,104180.0,0.30444749]
[1750436107878,5.92911696,104190.0,104180.0,0.30320749]
[1750436108092,5.73715996,104190.0,104180.0,0.30320749]
[1750436108527,5.9302677,104190.0,104180.0,0.29360956]
[1750436108740,5.92067032,104190.0,104180.0,0.29360956]
[1750436108953,5.92067032,104190.0,104180.0,0.30320787]
[1750436109604,5.91107266,104190.0,104180.0,0.29360956]
[1750436109817,5.90147491,104190.0,104180.0,0.21221267]
[1750436110037,6.06347491,104190.0,104180.0,0.19301542]
[1750436110253,6.06347491,104190.0,104180.0,0.20261409]
[1750436111328,6.06347491,104190.0,104180.0,0.21221267]
[1750436111967,6.05387706,104190.0,104180.0,0.19301542]
[1750436112229,6.05387706,104190.0,104180.0,0.01063877]
[1750436112444,6.11957706,104190.0,104180.0,0.00104]
[1750436112655,6.10932851,104190.0,104180.0,0.00104]
[1750436113084,6.14252851,104190.0,104180.0,0.00104]
[1750436113303,6.16045903,104190.0,104180.0,0.00104]
[1750436113523,6.08664618,104180.0,104170.0,4e-05]
[1750436113729,6.08664618,104180.0,104160.0,0.39268861]
[1750436113730,0.20159335,104170.0,104160.0,0.00027573]
[1750436113944,6.05088655,104170.0,104160.0,0.00027573]
[1750436114161,6.05088655,104170.0,104160.0,0.21148914]
[1750436114162,6.24170323,104170.0,104160.0,0.21148914]
[1750436114374,6.20386463,104170.0,104160.0,0.31946499]
[1750436114583,6.03226522,104170.0,104160.0,0.30026423]
[1750436114808,6.03226522,104170.0,104160.0,0.27726456]
[1750436115238,6.03226522,104170.0,104160.0,0.27726475]
[1750436115455,6.03426522,104170.0,104160.0,0.28686518]
[1750436115674,6.32434415,104170.0,104160.0,0.00027573]
[1750436115890,6.37756637,104170.0,104160.0,0.00027573]
[1750436116103,6.37756837,104170.0,104160.0,0.00027573]
[1750436116539,0.54161271,104160.0,104150.0,0.00014]
[1750436116762,6.29296489,104160.0,104150.0,0.00014]
[1750436116978,6.41115491,104160.0,104150.0,0.00018704]
[1750436118304,6.41215491,104160.0,104150.0,0.00018704]
[1750436118563,6.41615491,104160.0,104150.0,0.00018704]
[1750436119289,5.17292107,104150.0,104140.0,0.01014069]
[1750436119533,5.82396659,104150.0,104140.0,0.03051702]
[1750436119795,5.66081659,104150.0,104140.0,0.22256618]
[1750436120055,5.86649659,104150.0,104140.0,0.03051702]
[1750436120292,5.86764659,104150.0,104140.0,0.03051702]
[1750436120965,5.86764659,104150.0,104140.0,0.22256618]
[1750436121177,5.86864659,104150.0,104140.0,0.22256618]
[1750436121386,5.87709784,104150.0,104140.0,0.29576854]
[1750436121605,5.57613873,104150.0,104140.0,0.30537081]
[1750436121824,5.62942026,104150.0,104140.0,0.30537081]
[1750436122479,5.38410745,104150.0,104140.0,0.32457489]
[1750436122698,0.001,104150.0,104140.0,0.3353567]
[1750436122909,0.45701659,104150.0,104140.0,0.3353567]
[1750436123132,0.95701659,104150.0,104140.0,0.3353567]
[1750436123350,0.45701659,104150.0,104140.0,0.3353567]
[1750436123580,0.79701659,104150.0,104140.0,0.3353567]
[1750436123814,0.341,104150.0,104140.0,0.3353567]
[1750436124065,0.79701659,104150.0,104140.0,0.31512189]
[1750436128128,0.80661738,104150.0,104140.0,0.31512189]
[1750436128343,0.79701659,104150.0,104140.0,0.31512189]
[1750436128562,0.341,104150.0,104140.0,0.41040082]
[1750436128774,0.79701659,104150.0,104140.0,0.41040082]
[1750436129422,0.001,104150.0,104140.0,0.42494167]
[1750436129649,0.001,104150.0,104140.0,0.88095826]
[1750436129871,0.001,104150.0,104140.0,0.42494167]
[1750436130525,0.79601659,104160.0,104150.0,0.29617506]
[1750436130762,0.79601659,104160.0,104150.0,0.44481421]
[1750436131260,1.25203318,104160.0,104150.0,0.28163421]
[1750436131482,1.26163305,104160.0,104150.0,0.44481421]
[1750436131707,1.25203318,104160.0,104150.0,0.44481421]
[1750436132394,1.27123292,104160.0,104150.0,0.28163421]
[1750436132612,1.28083307,104160.0,104150.0,0.28863421]
[1750436132836,4.907889,104170.0,104160.0,0.282613]
[1750436133076,0.79601659,104170.0,104160.0,0.283793]
[1750436133304,0.79601659,104170.0,104160.0,0.445753]
[1750436134044,0.79601659,104170.0,104160.0,0.447753]
[1750436134280,0.80561545,104170.0,104160.0,0.447753]
[1750436134500,1.27123145,104170.0,104160.0,0.446573]
[1750436134717,1.26163222,104170.0,104160.0,0.446573]
[1750436135160,0.79601659,104170.0,104160.0,0.284613]
[1750436135386,0.79601659,104170.0,104160.0,0.447753]
[1750436137072,0.79601659,104170.0,104160.0,0.447793]
[1750436138250,0.79601659,104170.0,104160.0,0.27623304]
[1750436138485,0.80561554,104170.0,104160.0,0.285833]
[1750436138712,0.81521467,104170.0,104160.0,0.446653]
[1750436138951,0.80561554,104170.0,104160.0,0.446653]
[1750436139875,0.79601659,104170.0,104160.0,0.447783]
[1750436141523,0.34,104180.0,104170.0,0.27707543]
[1750436141736,0.34,104180.0,104170.0,0.27820543]
[1750436141968,0.79601659,104180.0,104170.0,0.27820543]
[1750436142670,0.79701659,104180.0,104170.0,0.27820543]
[1750436143171,0.001,104180.0,104170.0,0.37348436]
[1750436143403,0.45701659,104180.0,104170.0,0.37348436]
[1750436144131,0.45801659,104180.0,104170.0,0.37348436]
[1750436144373,0.45701659,104180.0,104170.0,0.37348436]
[1750436144817,0.45701659,104180.0,104170.0,0.37448436]
[1750436145304,0.45601659,104180.0,104170.0,0.37448436]
[1750436145535,0.45601659,104180.0,104170.0,0.37548436]
[1750436147387,0.83595039,104190.0,104180.0,0.22077061]
[1750436147593,0.83595039,104190.0,104180.0,0.44976061]
[1750436147594,1.301564,104190.0,104180.0,0.44976061]
[1750436148675,1.302564,104190.0,104180.0,0.44990213]
[1750436148883,1.304564,104190.0,104180.0,0.44990213]
[1750436149091,1.304564,104190.0,104180.0,0.44030401]
[1750436149329,1.31416129,104190.0,104180.0,0.44877213]
[1750436149537,1.32375877,104190.0,104180.0,0.44877213]
[1750436149749,1.59161334,104190.0,104180.0,0.19211694]
[1750436149989,6.15103588,104190.0,104180.0,0.37327438]
[1750436150439,6.15103588,104190.0,104180.0,0.38287296]
[1750436150647,5.95907888,104190.0,104180.0,0.37327438]
[1750436150855,1.30456409,104190.0,104180.0,0.46326939]
[1750436151552,1.29496698,104190.0,104180.0,0.46326939]
[1750436151993,1.31416129,104190.0,104180.0,0.46326939]
[1750436152211,1.52531371,104190.0,104180.0,0.37327429]
[1750436152425,1.52644371,104190.0,104180.0,0.38287269]
[1750436152635,1.51684669,104190.0,104180.0,0.37323429]
[1750436152844,1.51684669,104190.0,104180.0,0.39243118]
[1750436153037,6.08473569,104190.0,104180.0,0.19211694]
[1750436153286,6.1833784,104190.0,104180.0,0.00014152]
[1750436153470,6.27865733,104190.0,104180.0,0.00014152]
[1750436155003,5.93753561,104190.0,104180.0,0.00014152]
[1750436156314,6.09945561,104190.0,104180.0,0.00014152]
[1750436156793,0.37839709,104170.0,104160.0,0.22085337]
[1750436157015,5.51719736,104170.0,104160.0,0.23045333]
[1750436157226,5.51719736,104170.0,104160.0,0.29165333]
[1750436158118,5.51719736,104170.0,104160.0,0.29665333]
[1750436158339,5.49799845,104170.0,104160.0,0.29665333]
[1750436158552,5.51719718,104170.0,104160.0,0.30365333]
[1750436158765,5.52679678,104170.0,104160.0,0.30365333]
[1750436158991,5.70919177,104170.0,104160.0,0.29405337]
[1750436159206,6.5724342,104170.0,104150.0,0.20163165]
[1750436159418,6.27165511,104160.0,104150.0,0.22083406]
[1750436159633,6.31529511,104160.0,104150.0,0.23043513]
[1750436160080,6.31529511,104160.0,104150.0,0.24003611]
[1750436160299,6.11255176,104160.0,104150.0,0.30343556]
[1750436160560,5.75285325,104160.0,104150.0,0.30343556]
[1750436160772,6.32376545,104160.0,104150.0,0.29383467]
[1750436161206,4.77912214,104150.0,104140.0,0.44661429]
[1750436161423,0.80134683,104150.0,104140.0,0.28469439]
[1750436161653,5.7864429,104150.0,104140.0,0.01014069]
[1750436161885,0.55127389,104130.0,104120.0,0.20182868]
[1750436162101,1.23179756,104130.0,104120.0,0.20183026]
[1750436162330,1.23179756,104130.0,104120.0,0.00014]
[1750436162558,1.23179756,104130.0,104120.0,0.00028168]
[1750436162774,1.86770902,104130.0,104120.0,0.00028168]
[1750436162984,1.45871756,104130.0,104120.0,0.00028168]
[1750436163237,1.42561756,104130.0,104120.0,0.00028168]
[1750436163448,6.08878549,104130.0,104120.0,0.00028168]
[1750436163678,6.68979695,104130.0,104120.0,0.00028168]
[1750436164427,6.68979695,104130.0,104120.0,0.00328168]
[1750436164671,6.05688549,104130.0,104120.0,0.00728168]
[1750436164923,6.05688549,104130.0,104120.0,0.00028168]
[1750436165168,6.69169695,104130.0,104120.0,0.00028168]
[1750436165410,6.69569695,104130.0,104120.0,0.00028168]
[1750436165632,6.69089305,104130.0,104120.0,0.00028168]
[1750436165874,6.11998159,104130.0,104120.0,0.00028168]
[1750436166091,5.10957916,104120.0,104110.0,0.00014001]
[1750436166319,6.66894086,104120.0,104110.0,0.00014001]
[1750436166543,6.66890086,104120.0,104110.0,0.00014001]
[1750436167645,6.67190086,104120.0,104110.0,0.00014001]
[1750436167865,6.56297503,104120.0,104110.0,0.20184973]
[1750436168079,6.3818469,104120.0,104110.0,0.00014001]
[1750436168348,6.3868469,104120.0,104110.0,0.00114001]
[1750436168557,6.3888469,104120.0,104110.0,0.00118001]
[1750436168764,6.48411675,104120.0,104110.0,0.00118001]
[1750436169238,6.44047675,104120.0,104110.0,0.00118001]
[1750436169456,6.48411675,104120.0,104110.0,0.00083986]
[1750436169637,6.3277995,104120.0,104110.0,0.00083986]
[1750436169888,6.51984555,104120.0,104110.0,0.00083986]
[1750436170103,6.51980555,104120.0,104110.0,0.00083986]
[1750436172249,0.00960504,104110.0,104100.0,0.00014]
[1750436172467,5.20606747,104110.0,104100.0,0.00014]
[1750436172689,6.09734878,104110.0,104100.0,0.00014]
[1750436173788,6.12616546,104110.0,104100.0,0.00014]
[1750436173988,6.12716546,104110.0,104100.0,0.00014]
[1750436174214,6.12916546,104110.0,104100.0,0.00014]
[1750436174647,6.12616546,104110.0,104100.0,0.00014]
[1750436174860,6.14016546,104110.0,104100.0,0.00114]
[1750436176422,6.11134878,104110.0,104100.0,0.00114]
[1750436176645,6.16902946,104110.0,104100.0,0.00114]
[1750436176866,6.31713083,104100.0,104090.0,4e-05]
[1750436177076,6.02614188,104100.0,104090.0,4e-05]
[1750436177290,5.99316417,104100.0,104090.0,0.19218141]
[1750436177505,5.9835583,104100.0,104090.0,0.19218141]
[1750436177721,5.9835583,104100.0,104090.0,4e-05]
[1750436177938,5.9835583,104100.0,104090.0,0.19218141]
[1750436178149,5.9855583,104100.0,104090.0,0.19218141]
[1750436178371,5.97595234,104100.0,104090.0,4e-05]
[1750436178591,5.97591234,104100.0,104090.0,0.21139545]
[1750436178804,5.97991234,104100.0,104090.0,0.20278848]
[1750436179026,5.97991234,104100.0,104090.0,0.19318141]
[1750436179255,6.00754003,104100.0,104090.0,0.27479527]
[1750436179499,6.00754003,104100.0,104090.0,0.26518848]
[1750436179731,5.11924408,104090.0,104080.0,0.27741508]
[1750436180162,5.11924408,104090.0,104080.0,0.28702261]
[1750436180163,5.69976205,104090.0,104080.0,0.28702261]
[1750436180382,5.12885059,104090.0,104080.0,0.27741508]
[1750436180615,5.69015554,104090.0,104080.0,0.26780756]
[1750436180854,5.74971256,104090.0,104080.0,0.27741536]
[1750436181086,5.75071256,104090.0,104080.0,0.29710261]
[1750436181306,5.56157115,104090.0,104080.0,0.29810215]
[1750436181524,5.57117812,104090.0,104080.0,0.29810215]
[1750436181746,5.81236705,104090.0,104080.0,0.26927956]
[1750436181965,5.78839324,104090.0,104080.0,0.20337996]
[1750436182185,5.77878636,104090.0,104080.0,0.19377197]
[1750436182678,5.91147978,104080.0,104070.0,0.27978422]
[1750436182905,6.01227982,104080.0,104070.0,0.2331014]
[1750436183127,6.51467982,104080.0,104070.0,0.20437834]
[1750436183356,6.51467982,104080.0,104070.0,0.0122]
[1750436183578,6.50507211,104080.0,104070.0,0.20437834]
[1750436183779,6.50507211,104080.0,104070.0,0.21398725]
[1750436184037,6.41606978,104080.0,104070.0,0.0132]
[1750436184251,6.51134871,104080.0,104070.0,0.0132]
[1750436184478,6.51134871,104080.0,104070.0,0.02280891]
[1750436184718,5.36833579,104080.0,104070.0,0.22459598]
[1750436184959,6.51015871,104080.0,104070.0,0.23420462]
[1750436185194,6.51015871,104080.0,104050.0,0.1602598]
[1750436185195,0.3,104060.0,104050.0,0.1602598]
[1750436185442,5.61936579,104030.0,104020.0,4e-05]
[1750436185669,5.69993228,104010.0,104000.0,0.09386607]
[1750436185898,5.69993228,104010.0,104000.0,0.34936879]
[1750436185899,1.00619039,104010.0,104000.0,0.34936879]
[1750436186130,1.00619039,104010.0,104000.0,0.34951045]
[1750436186369,0.47518393,104010.0,104000.0,0.35128568]
[1750436186608,0.039905,104010.0,104000.0,0.42310439]
[1750436187044,0.34,104030.0,104020.0,0.28916019]
[1750436187310,0.34,104030.0,104020.0,0.29093542]
[1750436187311,0.011,104030.0,104020.0,0.29093542]
[1750436187557,0.868879,104050.0,104040.0,0.28501769]
[1750436187782,0.868879,104050.0,104040.0,0.28679292]
[1750436187783,0.028879,104050.0,104040.0,0.28679292]
[1750436188013,0.59979046,104050.0,104040.0,0.28679292]
[1750436188243,0.59979046,104050.0,104040.0,0.50777821]
[1750436188244,0.028879,104050.0,104040.0,0.50777821]
[1750436188432,0.01921856,104060.0,104050.0,0.28567168]
[1750436188699,0.38809256,104060.0,104050.0,0.28567168]
[1750436188903,0.38809256,104060.0,104040.0,0.43244102]
[1750436188904,0.44720105,104060.0,104040.0,0.22284237]
[1750436189157,0.44720105,104060.0,104050.0,0.21321156]
[1750436189158,5.19767906,104060.0,104050.0,0.21321156]
[1750436189408,5.09115014,104060.0,104050.0,0.24481156]
[1750436189622,5.66206104,104060.0,104050.0,0.26403206]
[1750436189845,5.6716706,104060.0,104050.0,0.26403206]
[1750436190086,5.87347789,104060.0,104050.0,0.25442195]
[1750436190315,5.76033145,104060.0,104050.0,0.25442176]
[1750436190550,0.95380083,104060.0,104050.0,0.29503187]
[1750436190767,0.99828193,104060.0,104050.0,0.29718187]
[1750436190986,0.04888937,104060.0,104050.0,0.3924608]
[1750436191211,0.61980083,104060.0,104050.0,0.3924608]
[1750436191472,0.38888937,104060.0,104050.0,0.5651008]
[1750436191688,0.91991146,104060.0,104050.0,0.5651008]
[1750436192828,0.349,104060.0,104050.0,0.5651008]
[1750436193496,0.91991146,104060.0,104050.0,0.5651008]
[1750436194387,0.349,104060.0,104050.0,0.5651008]
[1750436194864,0.91991146,104060.0,104050.0,0.5651008]
[1750436195574,0.349,104060.0,104050.0,0.5651008]
[1750436195835,0.91991146,104060.0,104050.0,0.5648608]
[1750436196335,0.91991146,104060.0,104050.0,0.46958187]
[1750436196573,0.91991146,104060.0,104050.0,0.29718187]
[1750436196808,0.91991146,104060.0,104050.0,0.46966187]
[1750436198069,0.349,104060.0,104050.0,0.46966187]
[1750436198283,0.009,104060.0,104050.0,0.54171468]
[1750436198530,0.57991146,104060.0,104050.0,0.54171468]
[1750436198764,0.009,104060.0,104050.0,0.54171468]
[1750436199067,0.57991146,104060.0,104050.0,0.54171468]
[1750436199308,0.009,104060.0,104050.0,0.28583653]
[1750436199538,1.42952046,104060.0,104050.0,0.29722187]
[1750436199767,0.349,104060.0,104050.0,0.29722187]
[1750436199996,0.91962314,104060.0,104050.0,0.29722187]
[1750436200225,0.34871168,104060.0,104050.0,0.29722187]
[1750436200451,0.91962314,104060.0,104050.0,0.54145068]